fUST/lending_fUST_20240717
["ID","MTS","AMOUNT","RATE_DAILY","PERIOD"]
[332413782,1721169039326,-500.0,0.00016143,2]
[332413783,1721169039336,-500.0,0.00016143,2]
[332413784,1721169039346,-500.0,0.00016143,2]
[332413785,1721169039356,-500.0,0.00016143,2]
[332413786,1721169039365,-1062.61273435,0.00016143,2]
[332413787,1721169039375,-147414.178034,0.00016144,2]
[332413788,1721169039384,-16759.4683826,0.00016154,2]
[332413789,1721169039393,-306.77313878,0.00016242,2]
[332413790,1721169039402,-500.0,0.00016242,2]
[332413791,1721169039411,-500.0,0.00016242,2]
[332413792,1721169039421,-500.0,0.00016242,2]
[332413793,1721169039430,-500.0,0.00016242,2]
[332413794,1721169039439,-500.0,0.00016242,2]
[332413795,1721169039449,-500.0,0.00016242,2]
[332413796,1721169039457,-216.72384047,0.00016242,2]
[332413797,1721169039466,-500.0,0.00016242,2]
[332413798,1721169039477,-500.0,0.00016242,2]
[332413799,1721169039486,-500.0,0.00016242,2]
[332413800,1721169039496,-400.0,0.00016242,2]
[332413801,1721169039507,-290.36314694,0.00016242,2]
[332413802,1721169039516,-500.0,0.00016242,2]
[332413803,1721169039527,-500.0,0.00016242,2]
[332413804,1721169039536,-500.0,0.00016242,2]
[332413805,1721169039546,-500.0,0.00016242,2]
[332413806,1721169039555,-500.0,0.00016242,2]
[332413807,1721169039565,-500.0,0.00016242,2]
[332413808,1721169039576,-191.89720916,0.00016242,2]
[332413809,1721169039586,-500.0,0.00016242,2]
[332413810,1721169039598,-500.0,0.00016242,2]
[332413811,1721169039607,-646.96398036,0.00016242,2]
[332413812,1721169039616,-500.0,0.00016242,2]
[332413813,1721169039626,-500.0,0.00016242,2]
[332413814,1721169039636,-500.0,0.00016242,2]
[332413815,1721169039647,-500.0,0.00016242,2]
[332413816,1721169039656,-500.0,0.00016242,2]
[332413817,1721169039667,-231.21353905,0.00016242,2]
[332413818,1721169039679,-500.0,0.00016242,2]
[332413819,1721169039690,-500.0,0.00016242,2]
[332413820,1721169039702,-500.0,0.00016242,2]
[332413821,1721169039713,-355.55251125,0.00016242,2]
[332413822,1721169039722,-500.0,0.00016242,2]
[332413823,1721169039731,-500.0,0.00016242,2]
[332413824,1721169039740,-500.0,0.00016242,2]
[332413825,1721169039751,-500.0,0.00016242,2]
[332413826,1721169039761,-294828.356067,0.00016244,2]
[332413827,1721169039770,-125401.78062436,0.00016245,2]
[332413828,1721169039783,-22012.39740964,0.00016245,2]
[332413829,1721169039793,-34969.80169059,0.00016255,2]
[332413830,1721169039802,-156.5664503,0.00016255,2]
[332413831,1721169039812,-21272.31914634,0.00016255,2]
[332413832,1721169039821,-17276.36712772,0.00016255,2]
[332413833,1721169039830,-151.0,0.0001655,2]
[332413834,1721169039839,-151.0,0.0001655,2]
[332413835,1721169039848,-151.0,0.0001655,2]
[332413836,1721169039857,-351.53854659,0.00016586,2]
[332413837,1721169039866,-150.58668022,0.00016667,2]
[332413839,1721169039876,-3287.29585971,0.00016669,2]
[332413841,1721169039885,-276.97473649,0.0001683,2]
[332413843,1721169039894,-154.71377951,0.00017531,2]
[332413845,1721169039904,-154.71377951,0.00017531,2]
[332413846,1721169039913,-420.0,0.00017537,2]
[332413848,1721169039922,-1984.47239452,0.000176,2]
[332413849,1721169039932,-420.0,0.00017645,2]
[332413850,1721169039943,-151.0,0.0001798,2]
[332413851,1721169039952,-151.0,0.0001798,2]
[332413852,1721169039962,-151.0,0.0001798,2]
[332413853,1721169039972,-151.0,0.0001798,2]
[332413854,1721169039983,-151.0,0.0001798,2]
[332413855,1721169039993,-151.0,0.0001798,2]
[332413856,1721169040003,-153.234003,0.0001798,2]
[332413857,1721169040013,-151.0,0.0001798,2]
[332413858,1721169040023,-151.0,0.0001798,2]
[332413860,1721169040035,-151.0,0.0001798,2]
[332413862,1721169040044,-151.0,0.0001798,2]
[332413863,1721169040053,-151.0,0.0001798,2]
[332413864,1721169040063,-216.386164,0.0001798,2]
[332413865,1721169040073,-216.386164,0.0001798,2]
[332413866,1721169040082,-163.890782,0.0001798,2]
[332413867,1721169040093,-163.890782,0.0001798,2]
[332413868,1721169040104,-151.0,0.0001798,2]
[332413869,1721169040114,-197.7145,0.0001798,2]
[332413870,1721169040126,-197.7145,0.0001798,2]
[332413871,1721169040137,-100000.0,0.00018,2]
[332413872,1721169040147,-1042.17665166,0.00018,2]
[332413873,1721169040157,-151.0,0.00018,2]
[332413874,1721169040166,-151.0,0.00018,2]
[332413875,1721169040176,-151.0,0.00018,2]
[332413876,1721169040186,-1326.785956,0.00018,2]
[332413877,1721169040196,-1326.785956,0.00018,2]
[332413878,1721169040207,-151.0,0.00018,2]
[332413879,1721169040222,-154.411803,0.00018,2]
[332413880,1721169040232,-151.0,0.00018,2]
[332413882,1721169040244,-151.0,0.00018,2]
[332413883,1721169040253,-151.0,0.00018,2]
[332413885,1721169040265,-167.00978445,0.0001818,2]
[332413887,1721169040275,-220.11101833,0.0001818,2]
[332413888,1721169040285,-250.17052318,0.0001818,2]
[332413890,1721169040295,-154.71377951,0.00018323,2]
[332413891,1721169040305,-4428.96098519,0.00018726,2]
[332413892,1721169040315,-191.36840556,0.00018798,2]
[332413894,1721169040326,-151.0,0.00018898,2]
[332413896,1721169040337,-151.0,0.00018898,2]
[332413898,1721169040347,-151.0,0.00018898,2]
[332413900,1721169040358,-151.0,0.00018898,2]
[332413902,1721169040368,-151.0,0.00018898,2]
[332413903,1721169040379,-151.0,0.00018898,2]
[332413905,1721169040388,-166.391057,0.00018898,2]
[332413906,1721169040398,-154.815219,0.00018898,2]
[332413908,1721169040407,-216.386164,0.00018898,2]
[332413909,1721169040417,-216.386164,0.00018898,2]
[332413911,1721169040426,-163.890782,0.00018898,2]
[332413913,1721169040435,-163.890782,0.00018898,2]
[332413915,1721169040444,-151.0,0.00018898,2]
[332413916,1721169040454,-197.7145,0.00018898,2]
[332413917,1721169040463,-197.7145,0.00018898,2]
[332413918,1721169040472,-1326.785956,0.00018899,2]
[332413919,1721169040483,-1326.785956,0.00018899,2]
[332413920,1721169040495,-151.0,0.00018899,2]
[332413921,1721169040504,-151.0,0.00018899,2]
[332413922,1721169040514,-151.0,0.00018899,2]
[332413924,1721169040523,-7407.46911586,0.000189,2]
[332413926,1721169040532,-814.58515643,0.00019,3]
[332413927,1721169040542,-197.54512246,0.00019039,2]
[332413928,1721169040551,-250.0,0.00019041,2]
[332413929,1721169040560,-185.97703803,0.000191,2]
[332413930,1721169040570,-151.0,0.00019165,2]
[332413931,1721169040579,-166509.21567378,0.00019165,2]
[332413932,1721169040589,-378.72439285,0.00019165,2]
[332413933,1721169040598,-166509.21567378,0.00019165,2]
[332413934,1721169040608,-587.0,0.00019173,2]
[332413935,1721169040618,-164.891339,0.00019178,2]
[332413936,1721169040627,-163.7811987,0.00019178,2]
[332413937,1721169040636,-151.0,0.00019178,2]
[332413938,1721169040645,-306.8835881,0.00019178,2]
[332413939,1721169040654,-441.4332173,0.00019178,4]
[332413940,1721169040663,-151.0,0.00019178,2]
[332413941,1721169040672,-151.0,0.00019178,2]
[332413942,1721169040682,-151.0,0.00019178,2]
[332413943,1721169040691,-151.0,0.00019178,2]
[332413944,1721169040701,-587.0,0.00019409,2]
[332413945,1721169040710,-990.42381896,0.0002,2]
[332413946,1721169040720,-294.76013497,0.0002,2]
[332413947,1721169040730,-154.71377951,0.0002,2]
[332413948,1721169040739,-154.89408291,0.0002,2]
[332413949,1721169040749,-228.28740449,0.0002,2]
[332413950,1721169040758,-158.77040209,0.0002,2]
[332413951,1721169040770,-154.74310492,0.0002,2]
[332413952,1721169040781,-350409.83986168,0.0002,2]
[332413953,1721169040794,-252.60029946,0.0002,2]
[332413954,1721169040805,-171.22517209,0.0002,2]
[332413955,1721169040817,-152.564247,0.0002,2]
[332413956,1721169040826,-187.407999,0.0002,2]
[332413957,1721169040837,-151.0,0.0002,2]
[332413958,1721169040849,-151.0,0.0002,2]
[332413959,1721169040858,-151.0,0.0002,2]
[332413960,1721169040870,-150.112233,0.0002,5]
[332413961,1721169040880,-151.0,0.0002,2]
[332413962,1721169040890,-151.0,0.0002,2]
[332413963,1721169040901,-151.0,0.0002,2]
[332413964,1721169040912,-285.366924,0.0002,2]
[332413965,1721169040922,-151.0,0.0002,2]
[332413966,1721169040932,-151.0,0.0002,2]
[332413967,1721169040942,-151.0,0.0002,2]
[332413968,1721169040951,-10753.66673519,0.0002,2]
[332413969,1721169041084,-151.24291427,0.0002,2]
[332413970,1721169041095,-151.0,0.0002,2]
[332413971,1721169041105,-151.0,0.0002,2]
[332413972,1721169041115,-10879.72843059,0.0002,2]
[332413973,1721169041125,-176.122982,0.0002,2]
[332413974,1721169041134,-151.0,0.0002,2]
[332413975,1721169041143,-170.682304,0.0002,2]
[332413976,1721169041152,-216.386164,0.0002,2]
[332413977,1721169041162,-216.386164,0.0002,2]
[332413978,1721169041171,-163.890782,0.0002,2]
[332413979,1721169041181,-163.890782,0.0002,2]
[332413980,1721169041191,-151.0,0.0002,2]
[332413981,1721169041200,-1326.785956,0.0002,2]
[332413982,1721169041209,-1326.785956,0.0002,2]
[332413983,1721169041222,-197.7145,0.0002,2]
[332413984,1721169041232,-1326.785956,0.0002,2]
[332413985,1721169041241,-1326.785956,0.0002,2]
[332413986,1721169041249,-197.7145,0.0002,2]
[332413987,1721169041260,-151.0,0.0002,2]
[332413988,1721169041270,-151.0,0.0002,2]
[332413989,1721169041279,-151.0,0.0002,2]
[332413990,1721169041289,-269.783386,0.0002,2]
[332413991,1721169041298,-151.0,0.0002,2]
[332413992,1721169041308,-151.0,0.0002,2]
[332413993,1721169041317,-151.0,0.0002,2]
[332413994,1721169041325,-151.0,0.00020548,2]
[332413995,1721169041335,-151.0,0.00020548,2]
[332413996,1721169041345,-153.0,0.00020599,2]
[332413997,1721169041354,-153.0,0.00020599,2]
[332413998,1721169041363,-153.0,0.00020599,2]
[332413999,1721169041372,-153.0,0.00020599,2]
[332414000,1721169041381,-645.1,0.0002062,2]
[332414001,1721169041391,-2098.24553343,0.0002066,7]
[332414002,1721169041399,-645.1,0.00020788,2]
[332414003,1721169041409,-156.121851,0.00020918,2]
[332414004,1721169041419,-645.1,0.00020955,2]
[332414005,1721169041428,-823.0,0.00020961,2]
[332414006,1721169041437,-114012.91357091,0.0002099,2]
[332414007,1721169041446,-299.58099341,0.00021095,2]
[332414008,1721169041455,-567.913576,0.00021096,2]
[332414009,1721169041464,-645.1,0.00021123,2]
[332414010,1721169041473,-151.0,0.00021123,2]
[332414011,1721169041482,-645.1,0.00021291,2]
[332414012,1721169041492,-823.0,0.0002135,2]
[332414013,1721169041500,-160.0,0.00021402,3]
[332414014,1721169041510,-4428.96098519,0.00021421,2]
[332414015,1721169041521,-645.1,0.00021459,2]
[332414016,1721169041530,-500.0,0.00021465,7]
[332414017,1721169041542,-500.0,0.00021465,7]
[332414018,1721169041551,-500.0,0.00021465,7]
[332414019,1721169041560,-500.0,0.00021465,7]
[332414020,1721169041569,-500.0,0.00021465,7]
[332414021,1721169041579,-500.0,0.00021465,7]
[332414022,1721169041590,-500.0,0.00021465,7]
[332414023,1721169041599,-582.42,0.00021465,7]
[332414024,1721169041609,-150.0,0.0002152,2]
[332414025,1721169041618,-504.0,0.0002152,2]
[332414026,1721169041629,-1407.0,0.0002152,2]
[332414027,1721169041638,-153.0,0.00021558,2]
[332414028,1721169041647,-153.0,0.00021558,2]
[332414029,1721169041657,-306.0,0.00021558,2]
[332414030,1721169041667,-153.0,0.00021558,2]
[332414031,1721169041680,-153.0,0.00021558,2]
[332414032,1721169041693,-153.0,0.00021558,2]
[332414033,1721169041702,-153.0,0.00021558,2]
[332414034,1721169041712,-153.0,0.00021558,2]
[332414035,1721169041720,-153.0,0.00021558,2]
[332414036,1721169041730,-153.0,0.00021558,2]
[332414037,1721169041739,-153.0,0.00021558,2]
[332414038,1721169041750,-285.3087811,0.00021558,2]
[332414039,1721169041759,-645.1,0.00021626,2]
[332414040,1721169041769,-151.0,0.00021626,2]
[332414041,1721169041780,-153.0,0.00021644,2]
[332414042,1721169041790,-306.0,0.00021644,2]
[332414043,1721169041801,-153.0,0.00021644,2]
[332414044,1721169041812,-645.1,0.00021794,2]
[332414045,1721169041823,-151.0,0.00021794,2]
[332414046,1721169041834,-10119.72747558,0.00021798,2]
[332414047,1721169041845,-3000.0,0.000218,2]
[332414048,1721169041854,-2837.65976581,0.000218,7]
[332414049,1721169041863,-1326.785956,0.000218,2]
[332414050,1721169041872,-1326.785956,0.000218,2]
[332414051,1721169041881,-151.0,0.000218,2]
[332414052,1721169041890,-151.0,0.000218,2]
[332414053,1721169041899,-3000.0,0.0002181,2]
[332414054,1721169041908,-3000.0,0.0002182,2]
[332414055,1721169041917,-3000.0,0.0002183,2]
[332414056,1721169041926,-3000.0,0.0002184,2]
[332414057,1721169041935,-3000.0,0.0002185,2]
[332414058,1721169041944,-153003.25196457,0.0002185,2]
[332414059,1721169041953,-1326.785956,0.0002185,2]
[332414060,1721169041964,-1326.785956,0.0002185,2]
[332414061,1721169041977,-151.0,0.0002185,2]
[332414062,1721169041986,-151.0,0.0002185,2]
[332414063,1721169041996,-3000.0,0.0002186,2]
[332414064,1721169042006,-3000.0,0.0002187,2]
[332414065,1721169042015,-3000.0,0.0002188,2]
[332414066,1721169042026,-3000.0,0.0002189,2]
[332414067,1721169042035,-5844.0,0.000219,3]
[332414068,1721169042044,-150.112233,0.000219,5]
[332414069,1721169042053,-3000.0,0.000219,2]
[332414070,1721169042063,-3000.0,0.0002191,2]
[332414071,1721169042071,-1066.9082796,0.00021917,2]
[332414072,1721169042080,-500.0,0.00021917,2]
[332414073,1721169042090,-500.0,0.00021917,2]
[332414074,1721169042099,-500.0,0.00021917,2]
[332414075,1721169042108,-500.0,0.00021917,2]
[332414076,1721169042118,-500.0,0.00021917,2]
[332414077,1721169042127,-500.0,0.00021917,2]
[332414078,1721169042137,-518.36472509,0.00021917,2]
[332414079,1721169042146,-517.01983143,0.00021917,2]
[332414080,1721169042156,-469.03692436,0.00021917,2]
[332414081,1721169042165,-500.0,0.00021917,2]
[332414082,1721169042175,-500.0,0.00021917,2]
[332414083,1721169042186,-515.39709604,0.00021917,2]
[332414084,1721169042196,-500.0,0.00021917,2]
[332414085,1721169042205,-500.0,0.00021917,2]
[332414086,1721169042216,-506.78913599,0.00021917,2]
[332414087,1721169042230,-500.0,0.00021917,2]
[332414088,1721169042241,-502.52945941,0.00021917,2]
[332414089,1721169042252,-319.48814599,0.00021917,2]
[332414090,1721169042262,-500.0,0.00021917,2]
[332414091,1721169042272,-500.0,0.00021917,2]
[332414092,1721169042281,-500.0,0.00021917,2]
[332414093,1721169042290,-500.0,0.00021917,2]
[332414094,1721169042302,-500.0,0.00021917,2]
[332414095,1721169042312,-500.0,0.00021917,2]
[332414096,1721169042321,-500.0,0.00021917,2]
[332414097,1721169042331,-500.0,0.00021917,2]
[332414098,1721169042340,-500.0,0.00021917,2]
[332414099,1721169042349,-506.19817952,0.00021917,2]
[332414100,1721169042359,-501.35180134,0.00021917,2]
[332414101,1721169042368,-500.0,0.00021917,2]
[332414102,1721169042378,-512.53891412,0.00021917,2]
[332414103,1721169042388,-500.0,0.00021917,2]
[332414104,1721169042398,-171.27608925,0.00021917,2]
[332414105,1721169042407,-500.0,0.00021917,2]
[332414106,1721169042417,-500.0,0.00021917,2]
[332414107,1721169042426,-500.0,0.00021917,2]
[332414108,1721169042436,-500.0,0.00021917,2]
[332414109,1721169042445,-500.0,0.00021917,2]
[332414110,1721169042454,-500.0,0.00021917,2]
[332414111,1721169042464,-500.0,0.00021917,2]
[332414112,1721169042474,-500.0,0.00021917,2]
[332414113,1721169042489,-500.0,0.00021917,2]
[332414114,1721169042499,-500.0,0.00021917,2]
[332414115,1721169042509,-500.0,0.00021917,2]
[332414116,1721169042518,-500.0,0.00021917,2]
[332414117,1721169042528,-599.50546674,0.00021917,2]
[332414118,1721169042538,-526.24507255,0.00021917,2]
[332414119,1721169042547,-500.0,0.00021917,2]
[332414120,1721169042556,-500.0,0.00021917,2]
[332414121,1721169042566,-500.0,0.00021917,2]
[332414122,1721169042576,-500.0,0.00021917,2]
[332414123,1721169042585,-506.41460141,0.00021917,2]
[332414124,1721169042594,-500.0,0.00021917,2]
[332414125,1721169042605,-500.0,0.00021917,2]
[332414126,1721169042614,-500.0,0.00021917,2]
[332414127,1721169042624,-510.83950627,0.00021917,2]
[332414128,1721169042633,-530.48376063,0.00021917,2]
[332414129,1721169042643,-500.0,0.00021917,2]
[332414130,1721169042653,-416.2255291,0.00021917,2]
[332414131,1721169042662,-500.0,0.00021917,2]
[332414132,1721169042673,-500.0,0.00021917,2]
[332414133,1721169042683,-500.0,0.00021917,2]
[332414134,1721169042692,-500.0,0.00021917,2]
[332414135,1721169042703,-500.0,0.00021917,2]
[332414136,1721169042712,-500.0,0.00021917,2]
[332414137,1721169042723,-500.0,0.00021917,2]
[332414138,1721169042737,-230.07783821,0.00021917,2]
[332414139,1721169042746,-222.40350074,0.00021917,2]
[332414140,1721169042755,-500.0,0.00021917,2]
[332414141,1721169042764,-500.0,0.00021917,2]
[332414142,1721169042773,-500.0,0.00021917,2]
[332414144,1721169042782,-500.0,0.00021917,2]
[332414145,1721169042791,-151.0,0.00021917,2]
[332414147,1721169042800,-500.0,0.00021917,2]
[332414148,1721169042810,-500.0,0.00021917,2]
[332414149,1721169042819,-500.0,0.00021917,2]
[332414151,1721169042829,-500.0,0.00021917,2]
[332414153,1721169042838,-500.0,0.00021917,2]
[332414155,1721169042848,-500.0,0.00021917,2]
[332414157,1721169042858,-500.0,0.00021917,2]
[332414159,1721169042867,-500.0,0.00021917,2]
[332414161,1721169042877,-500.0,0.00021917,2]
[332414163,1721169042887,-500.0,0.00021917,2]
[332414165,1721169042896,-500.0,0.00021917,2]
[332414167,1721169042905,-500.0,0.00021917,2]
[332414169,1721169042915,-500.0,0.00021917,2]
[332414171,1721169042924,-500.0,0.00021917,2]
[332414173,1721169042935,-245.7935374,0.00021917,2]
[332414174,1721169042945,-1500.0,0.00021917,2]
[332414175,1721169042955,-500.0,0.00021917,2]
[332414176,1721169042965,-516.98125419,0.00021917,2]
[332414177,1721169042974,-1135.72,0.00021917,2]
[332414178,1721169042986,-458.7588219,0.00021917,2]
[332414179,1721169042995,-500.0,0.00021917,2]
[332414180,1721169043005,-276.68072807,0.00021917,2]
[332414181,1721169043014,-500.0,0.00021917,2]
[332414182,1721169043024,-500.0,0.00021917,2]
[332414183,1721169043034,-500.0,0.00021917,2]
[332414184,1721169043043,-500.0,0.00021917,2]
[332414185,1721169043053,-232.30979838,0.00021917,2]
[332414186,1721169043063,-500.0,0.00021917,2]
[332414187,1721169043073,-501.2004926,0.00021917,2]
[332414188,1721169043083,-500.0,0.00021917,2]
[332414190,1721169043093,-500.0,0.00021917,2]
[332414192,1721169043102,-200.0,0.00021917,2]
[332414194,1721169043113,-500.0,0.00021917,2]
[332414196,1721169043125,-500.0,0.00021917,2]
[332414198,1721169043134,-500.0,0.00021917,2]
[332414200,1721169043144,-500.0,0.00021917,2]
[332414202,1721169043154,-500.0,0.00021917,2]
[332414204,1721169043165,-500.0,0.00021917,2]
[332414206,1721169043175,-500.0,0.00021917,2]
[332414209,1721169043186,-500.0,0.00021917,2]
[332414211,1721169043196,-500.0,0.00021917,2]
[332414213,1721169043205,-500.0,0.00021917,2]
[332414216,1721169043214,-500.0,0.00021917,2]
[332414219,1721169043231,-500.0,0.00021917,2]
[332414222,1721169043241,-500.0,0.00021917,2]
[332414224,1721169043250,-500.0,0.00021917,2]
[332414226,1721169043259,-500.0,0.00021917,2]
[332414229,1721169043270,-500.0,0.00021917,2]
[332414232,1721169043279,-549.62161894,0.00021917,2]
[332414235,1721169043289,-2009.05,0.00021917,2]
[332414239,1721169043301,-500.0,0.00021917,2]
[332414242,1721169043312,-503.22872033,0.00021917,2]
[332414245,1721169043322,-500.0,0.00021917,2]
[332414247,1721169043332,-500.0,0.00021917,2]
[332414248,1721169043341,-500.0,0.00021917,2]
[332414250,1721169043351,-500.0,0.00021917,2]
[332414251,1721169043364,-284.63967254,0.00021917,2]
[332414252,1721169043374,-505.91595934,0.00021917,2]
[332414253,1721169043383,-500.0,0.00021917,2]
[332414254,1721169043393,-500.0,0.00021917,2]
[332414255,1721169043402,-500.0,0.00021917,2]
[332414256,1721169043412,-500.0,0.00021917,2]
[332414258,1721169043422,-502.49719699,0.00021917,2]
[332414260,1721169043432,-500.0,0.00021917,2]
[332414262,1721169043441,-500.0,0.00021917,2]
[332414264,1721169043453,-500.0,0.00021917,2]
[332414266,1721169043462,-500.0,0.00021917,2]
[332414268,1721169043472,-500.0,0.00021917,2]
[332414269,1721169043486,-500.0,0.00021917,2]
[332414271,1721169043497,-500.0,0.00021917,2]
[332414273,1721169043507,-500.0,0.00021917,2]
[332414275,1721169043517,-500.0,0.00021917,2]
[332414277,1721169043533,-513.66,0.00021917,2]
[332414279,1721169043543,-500.0,0.00021917,2]
[332414281,1721169043552,-500.0,0.00021917,2]
[332414283,1721169043563,-500.0,0.00021917,2]
[332414284,1721169043573,-500.0,0.00021917,2]
[332414285,1721169043583,-500.0,0.00021917,2]
[332414286,1721169043593,-890.49,0.00021917,2]
[332414288,1721169043602,-232.05176221,0.00021917,2]
[332414290,1721169043613,-500.0,0.00021917,2]
[332414292,1721169043623,-586.02376239,0.00021917,2]
[332414294,1721169043635,-500.0,0.00021917,2]
[332414296,1721169043644,-500.0,0.00021917,2]
[332414298,1721169043654,-500.0,0.00021917,2]
[332414300,1721169043663,-500.0,0.00021917,2]
[332414301,1721169043673,-521.03,0.00021917,2]
[332414302,1721169043683,-500.0,0.00021917,2]
[332414303,1721169043693,-151.0,0.00021917,2]
[332414304,1721169043703,-500.0,0.00021917,2]
[332414305,1721169043712,-470.85827289,0.00021917,2]
[332414306,1721169043722,-500.0,0.00021917,2]
[332414307,1721169043737,-538.45,0.00021917,2]
[332414308,1721169043747,-500.0,0.00021917,2]
[332414309,1721169043756,-500.0,0.00021917,2]
[332414310,1721169043766,-500.0,0.00021917,2]
[332414311,1721169043775,-500.0,0.00021917,2]
[332414312,1721169043785,-500.0,0.00021917,2]
[332414313,1721169043794,-571.393042,0.00021917,2]
[332414314,1721169043805,-500.0,0.00021917,2]
[332414315,1721169043815,-526.07,0.00021917,2]
[332414316,1721169043825,-500.0,0.00021917,2]
[332414317,1721169043835,-500.0,0.00021917,2]
[332414318,1721169043845,-500.0,0.00021917,2]
[332414319,1721169043855,-524.36714738,0.00021917,2]
[332414320,1721169043865,-500.0,0.00021917,2]
[332414321,1721169043875,-500.0,0.00021917,2]
[332414322,1721169043992,-500.0,0.00021917,2]
[332414323,1721169044015,-500.0,0.00021917,2]
[332414324,1721169044025,-500.0,0.00021917,2]
[332414325,1721169044034,-500.0,0.00021917,2]
[332414326,1721169044043,-292.99920951,0.00021917,2]
[332414327,1721169044053,-500.0,0.00021917,2]
[332414329,1721169044062,-500.0,0.00021917,2]
[332414331,1721169044071,-500.0,0.00021917,2]
[332414333,1721169044080,-500.0,0.00021917,2]
[332414334,1721169044089,-500.0,0.00021917,2]
[332414335,1721169044099,-500.0,0.00021917,2]
[332414336,1721169044108,-500.0,0.00021917,2]
[332414338,1721169044117,-500.0,0.00021917,2]
[332414340,1721169044126,-500.0,0.00021917,2]
[332414342,1721169044136,-500.0,0.00021917,2]
[332414344,1721169044146,-500.0,0.00021917,2]
[332414346,1721169044155,-500.0,0.00021917,2]
[332414348,1721169044165,-500.0,0.00021917,2]
[332414349,1721169044174,-500.0,0.00021917,2]
[332414350,1721169044184,-500.0,0.00021917,2]
[332414351,1721169044193,-524.46903918,0.00021917,2]
[332414352,1721169044203,-500.0,0.00021917,2]
[332414353,1721169044213,-500.0,0.00021917,2]
[332414354,1721169044226,-500.0,0.00021917,2]
[332414355,1721169044238,-899.71,0.00021917,2]
[332414356,1721169044247,-181.52347771,0.00021917,2]
[332414357,1721169044257,-500.0,0.00021917,2]
[332414358,1721169044267,-500.0,0.00021917,2]
[332414359,1721169044277,-500.0,0.00021917,2]
[332414360,1721169044287,-500.0,0.00021917,2]
[332414361,1721169044297,-500.0,0.00021917,2]
[332414362,1721169044307,-500.0,0.00021917,2]
[332414363,1721169044317,-298.45892836,0.00021917,2]
[332414364,1721169044326,-500.0,0.00021917,2]
[332414365,1721169044335,-500.0,0.00021917,2]
[332414366,1721169044345,-151.0,0.00021917,2]
[332414367,1721169044356,-500.0,0.00021917,2]
[332414368,1721169044365,-500.0,0.00021917,2]
[332414369,1721169044374,-151.0,0.00021917,2]
[332414370,1721169044384,-501.59,0.00021917,2]
[332414371,1721169044394,-500.0,0.00021917,2]
[332414372,1721169044404,-500.0,0.00021917,2]
[332414373,1721169044416,-500.0,0.00021917,2]
[332414374,1721169044426,-525.91510597,0.00021917,2]
[332414375,1721169044436,-500.0,0.00021917,2]
[332414376,1721169044449,-500.0,0.00021917,2]
[332414377,1721169044459,-500.0,0.00021917,2]
[332414378,1721169044468,-500.0,0.00021917,2]
[332414379,1721169044480,-998.4,0.00021917,2]
[332414380,1721169044490,-500.0,0.00021917,2]
[332414381,1721169044499,-500.0,0.00021917,2]
[332414382,1721169044509,-500.0,0.00021917,2]
[332414383,1721169044519,-533.59674824,0.00021917,2]